Cogmind - Beta 12 @@@ ROGUE MODE // 2023.06.09 @ 19:00:23 Player: Pitt Result: Destroyed by H-66 Slayer with Gauss Rifle Performance ------------- Evolutions (4) 2000 Regions Visited (8) 1600 Robots Destroyed (22) 110 Value Destroyed (535) 535 Prototype IDs (2) 40 Alien Tech Used (0) 0 Bonus (500) 500 TOTAL SCORE: 4785 Bonus ------- Entered DSFs 500 Cogmind --------- Core Integrity 0/850 Matter 223/300 Energy 37/100 System Corruption 7% Temperature Cool (0) Movement Core (100) Ox1 Location -6/Lower Caves Parts ------- > --- POWER (2) -------- (None) > --- PROPULSION (5) --- (None) > --- UTILITY (6) ------ Advanced Visual Processing Unit Enhanced Optical Array Seismic Detector Advanced ECM Suite > --- WEAPON (2) ------- (None) > --- INVENTORY (5) ---- Cooled Ion Engine Force Field Datajack Peak State ------------ > --- POWER ------------ Cooled Ion Engine Neutrino Core > --- PROPULSION ------- Medium Treads Improved Medium Treads Flight Unit Flight Unit > --- UTILITY ---------- Advanced Heat Sink Small Storage Unit Advanced Visual Processing Unit Enhanced Optical Array Signal Interpreter Core Shielding > --- WEAPON ----------- Phase Cannon > --- INVENTORY -------- Light Deuterium Engine Seismic Detector Advanced ECM Suite Improved Light Armor Plating Improved Light Armor Plating Force Field Enhanced Autogun Datajack [Rating: 43] Favorites ----------- Power Cooled Ion Engine Engine Cooled Ion Engine Power Core Light Nuclear Core Propulsion Flight Unit Treads Improved Medium Treads Wheel Wheel Flight Unit Flight Unit Utility Small Storage Unit Device Improved Terrain Scanner Storage Small Storage Unit Processor Signal Interpreter Protection Core Shielding Weapon Light Assault Rifle Energy Cannon Phase Cannon Ballistic Gun Light Assault Rifle Special Weapon Mining Laser Special Melee Weapon Datajack Build | -11 -10 -9 -9 -8 -7 -7 -6 -6 ------- Run | Jun Mat Mat Min Mat Fac DSF Fac Low Slots Evolved 8 | . . 2 . 2 2 . 2 . Power 1 | . . . . . 1 . . . Propulsion 3 | . . 1 . 1 . . 1 . Utility 4 | . . 1 . 1 1 . 1 . Weapon . | . . . . . . . . . Parts Attached 56 | 7 9 13 1 8 2 2 . 14 Power 7 | 1 2 1 . 1 . . . 2 Engine 5 | 1 1 1 . 1 . . . 1 Core 2 | . 1 . . . . . . 1 Reactor . | . . . . . . . . . Propulsion 17 | 2 3 5 . 3 1 . . 3 Treads 2 | . . . . . . . . 2 Leg . | . . . . . . . . . Wheel 6 | 2 3 1 . . . . . . Hover . | . . . . . . . . . Flight 9 | . . 4 . 3 1 . . 1 Utility 17 | 2 1 5 . 1 1 . . 7 Device 10 | 1 1 4 . 1 . . . 3 Storage 1 | 1 . . . . . . . . Processor 3 | . . 1 . . 1 . . 1 Hackware . | . . . . . . . . . Protection 3 | . . . . . . . . 3 Artifact . | . . . . . . . . . Weapon 15 | 2 3 2 1 3 . 2 . 2 Energy Gun . | . . . . . . . . . Energy Cannon 1 | . . . . . . . . 1 Ballistic Gun 10 | 2 3 . . 3 . 1 . 1 Ballistic Cannon . | . . . . . . . . . Launcher . | . . . . . . . . . Special Weapon 2 | . . 1 1 . . . . . Impact Weapon . | . . . . . . . . . Slashing Weapon . | . . . . . . . . . Piercing Weapon . | . . . . . . . . . Special Melee Weapon 2 | . . 1 . . . 1 . . Unidentified Prototypes 2 | . . . . 2 . . . . Parts Lost 19 | . . 2 . 1 . . . 16 Power 2 | . . . . . . . . 2 Propulsion 9 | . . 2 . 1 . . . 6 Utility 6 | . . . . . . . . 6 Weapon 2 | . . . . . . . . 2 Highest Loss Streak 13 | . . 2 . 1 . . . 13 To Critical Strikes 1 | . . . . . . . . 1 Average Slot Usage (%) 87 | . 99 95 88 84 74 78 66 67 Engine 7 | . 11 3 11 9 7 7 6 5 Core 2 | . 2 7 . . . . . 1 Treads 1 | . . . . . . . . 4 Wheel 13 | . 27 20 . . . . . . Flight 13 | . . 11 33 36 28 30 26 17 Device 12 | . 14 15 11 16 15 15 13 8 Storage 10 | . 14 11 11 9 7 7 6 5 Processor 7 | . . 6 11 9 15 15 13 15 Ballistic Gun 12 | . 27 17 . 2 . . . . Special Melee Weapon 1 | . . . 10 . . 2 . . Naked Turns . | . . . . . . . . . Heaviest Build 37 | 12 14 15 12 16 15 16 15 37 Greatest Support 58 | 20 20 30 12 16 16 16 16 58 Greatest Overweight (x) 3 | . 2 3 . . . . . 1 Average Overweight (x) . | . . . . . . . . . Largest Inventory Capacity 8 | 8 8 8 8 8 8 8 8 8 Average Capacity 7 | 7 8 8 8 8 8 8 8 7 Most Carried 8 | 2 8 8 8 8 8 8 8 8 Average Carried 6 | . 6 6 8 7 6 7 8 7 Final Capacity 8 | 8 8 8 8 8 8 8 8 5 Final Carried 8 | 2 8 8 8 7 8 8 8 3 Class Distribution -------------------- 50% | Scavenger-Mutant 34% | Mutant 14% | Scavenger-Scout Dominant Class ---------------- Mutant | -10/Materials Scavenger-Mutant | -9/Materials Scavenger-Mutant | -9/Mines Scavenger-Mutant | -8/Materials Scavenger-Scout | -7/Factory Scavenger-Scout | -7/DSF Scavenger-Scout | -6/Factory Scavenger-Mutant | -6/Lower Caves Resources | -11 -10 -9 -9 -8 -7 -7 -6 -6 ----------- Run | Jun Mat Mat Min Mat Fac DSF Fac Low Matter Collected 885 | 184 202 129 . 20 . 1 . 349 Remotely . | . . . . . . . . . Salvage Created 681 | 55 258 73 . 45 . . . 250 Parts 54 | 10 18 11 . 5 . . . 10 Haulers Intercepted . | . . . . . . . . . Recyclers Shooed . | . . . . . . . . . Parts Field Recycled . | . . . . . . . . . Retrieved Matter . | . . . . . . . . . Parts Self-Destructed 12 | . . . . . . . . 12 Prevented . | . . . . . . . . . Kills | -11 -10 -9 -9 -8 -7 -7 -6 -6 ------- Run | Jun Mat Mat Min Mat Fac DSF Fac Low Combat Hostiles Destroyed 16 | . 5 4 . 3 . . . 4 Guns 12 | . 5 4 . 3 . . . . Cannons 4 | . . . . . . . . 4 Classes Destroyed 6 | 1 2 1 . . . . . 2 Tunneler 4 | 3 1 . . . . . . . Watcher 2 | . 1 1 . . . . . . Swarmer 7 | . . 4 . 3 . . . . Grunt 7 | . 5 . . . . . . 2 Duelist 1 | . . . . . . . . 1 Specialist 1 | . . . . . . . . 1 Best Kill Streak 4 | 2 4 4 . 3 . . . 3 Combat Bots Only 4 | . 3 4 . 3 . . . 3 Max Kills in Single Turn 1 | 1 1 1 . 1 . . . 1 Gunslinging . | . . . . . . . . . Exploded . | . . . . . . . . . Melee . | . . . . . . . . . Uniques/NPCs Destroyed . | . . . . . . . . . Combat | -11 -10 -9 -9 -8 -7 -7 -6 -6 -------- Run | Jun Mat Mat Min Mat Fac DSF Fac Low Damage Taken 2814 | . 176 241 . 155 . 137 . 2105 Core 1125 | . 61 63 . 16 . 118 . 867 Absorbed by Shields . | . . . . . . . . . Redirected to Shielding 35 | . . . . . . . . 35 Regen/Repaired (Parts) 17 | . . . . . 17 . . . Core Remaining (%) 87 | 100 75 . 84 97 . 83 . . Volleys Fired 93 | 4 23 23 2 9 . 1 . 31 Largest 2 | 2 2 2 1 1 . 1 . 2 Hottest 110 | 40 40 100 100 25 . 25 . 110 Shots Fired 140 | 8 46 42 2 9 . 1 . 32 Gun 118 | 8 46 41 . 9 . 1 . 13 Cannon 19 | . . . . . . . . 19 Launcher . | . . . . . . . . . Special 3 | . . 1 2 . . . . . Kinetic 118 | 8 46 41 . 9 . 1 . 13 Thermal 22 | . . 1 2 . . . . 19 Explosive . | . . . . . . . . . Electromagnetic . | . . . . . . . . . Robot Hit Streak 13 | 2 8 7 . 3 . 2 . 13 Robot Miss Streak 5 | 1 3 4 . 5 . . . 2 Penetration Max . | . . . . . . . . . Secondary Targets 1 | . . 1 . . . . . . Max Gunslinging Chain 1 | . . 1 . . . . . . Shots Hit Robots 85 | 4 29 17 . 5 . 4 . 26 Core Hits 40 | 4 15 8 . 3 . . . 10 Critical Kills . | . . . . . . . . . Critical Parts Destroyed 2 | . 2 . . . . . . . Critical Strikes 2 | . 2 . . . . . . . Destroy 2 | . 2 . . . . . . . Melee Attacks 3 | . . . . . . 3 . . Impact . | . . . . . . . . . Slashing . | . . . . . . . . . Piercing . | . . . . . . . . . Sneak Attacks 3 | . . . . . . 3 . . Combat Hostiles 3 | . . . . . . 3 . . Follow-up Attacks . | . . . . . . . . . Damage Inflicted 1325 | 54 301 165 . 87 . 18 . 700 Guns 810 | 54 301 165 . 87 . 18 . 185 Cannons 515 | . . . . . . . . 515 Explosions . | . . . . . . . . . Melee . | . . . . . . . . . Ramming . | . . . . . . . . . Kinetic 810 | 54 301 165 . 87 . 18 . 185 Thermal 515 | . . . . . . . . 515 Explosive . | . . . . . . . . . Electromagnetic . | . . . . . . . . . Impact . | . . . . . . . . . Slashing . | . . . . . . . . . Piercing . | . . . . . . . . . Highest Corruption 7 | . . . . . . . . 7 Average Corruption 5 | . . . . . . . . 5 Corruption Purged . | . . . . . . . . . Corruption Blocked . | . . . . . . . . . Effects 5 | . . . . . . . . 5 Message Errors 3 | . . . . . . . . 3 Matter Fused 2 | . . . . . . . . 2 Overload Shots . | . . . . . . . . . Overflow Damage . | . . . . . . . . . Projectiles . | . . . . . . . . . Explosions . | . . . . . . . . . Melee . | . . . . . . . . . Knockbacks . | . . . . . . . . . Impact . | . . . . . . . . . Kinetic . | . . . . . . . . . Secondary . | . . . . . . . . . Self-Inflicted Damage . | . . . . . . . . . Shots . | . . . . . . . . . Rammed . | . . . . . . . . . Targets Rammed . | . . . . . . . . . Kicked . | . . . . . . . . . Crushed . | . . . . . . . . . Highest Temperature 91 | . 12 20 40 2 . . . 91 Average Temperature 18 | . 7 6 22 1 . . . 32 Received Heat Transfer 360 | . 99 . . . . . . 261 Siege Activations . | . . . . . . . . . Robots Corrupted . | . . . . . . . . . Combat Hostiles . | . . . . . . . . . Parts Fried . | . . . . . . . . . Impact Corruptions . | . . . . . . . . . Robots Melted . | . . . . . . . . . Combat Hostiles . | . . . . . . . . . Parts Melted 1 | . . . . . . . . 1 Heat Transferred 629 | . . . . . . . . 629 Parts Sabotaged . | . . . . . . . . . Parts Stolen . | . . . . . . . . . Parts Stripped . | . . . . . . . . . Power Chain Reactions . | . . . . . . . . . Missiles Intercepted . | . . . . . . . . . Alert | -11 -10 -9 -9 -8 -7 -7 -6 -6 ------- Run | Jun Mat Mat Min Mat Fac DSF Fac Low Peak Influence 114 | 15 114 86 35 98 56 39 40 . Initial 48 | . 9 48 33 13 39 39 20 . Average 53 | 6 64 58 33 57 41 39 27 . Maximum Alert Level . | . . . . . . . . . Low Security (%) 100 | 100 100 100 100 100 100 100 100 . Level 1 . | . . . . . . . . . Level 2 . | . . . . . . . . . Level 3 . | . . . . . . . . . Level 4 . | . . . . . . . . . Level 5 . | . . . . . . . . . High Security . | . . . . . . . . . Max Security . | . . . . . . . . . Squads Dispatched 3 | . 1 . . . 1 . 1 . Investigation . | . . . . . . . . . Extermination . | . . . . . . . . . Reinforcement 3 | . 1 . . . 1 . 1 . Assault . | . . . . . . . . . Garrison . | . . . . . . . . . Intercept . | . . . . . . . . . Searches Triggered . | . . . . . . . . . Construction Impeded . | . . . . . . . . . Haulers Reinforced . | . . . . . . . . . Active Scanning Responses . | . . . . . . . . . Cargo Convoy Interrupts . | . . . . . . . . . Stealth | -11 -10 -9 -9 -8 -7 -7 -6 -6 --------- Run | Jun Mat Mat Min Mat Fac DSF Fac Low Distress Signals 2 | . 2 . . . . . . . Communications Jammed . | . . . . . . . . . Distress Signals . | . . . . . . . . . Times Spotted 46 | . 9 8 . 9 1 2 2 15 Peak Tracking Total 7 | . 4 4 . 7 1 2 1 6 Tactical Retreats 4 | . . . . . . . . 4 Traps | -11 -10 -9 -9 -8 -7 -7 -6 -6 ------- Run | Jun Mat Mat Min Mat Fac DSF Fac Low Traps Triggered 2 | . 2 . . . . . . . Indirectly . | . . . . . . . . . Trap Hack Attempts . | . . . . . . . . . Triggered . | . . . . . . . . . Disarmed . | . . . . . . . . . Reprogrammed . | . . . . . . . . . Reused . | . . . . . . . . . Traps Extracted . | . . . . . . . . . Installed . | . . . . . . . . . Triggered . | . . . . . . . . . Machines | -11 -10 -9 -9 -8 -7 -7 -6 -6 ---------- Run | Jun Mat Mat Min Mat Fac DSF Fac Low Machines Disabled 1 | . . . . . . . . 1 Max in Single Turn 1 | . . . . . . . . 1 Machines Repaired . | . . . . . . . . . Machines Sabotaged . | . . . . . . . . . Overloaded Fab Kills . | . . . . . . . . . Hacking | -11 -10 -9 -9 -8 -7 -7 -6 -6 --------- Run | Jun Mat Mat Min Mat Fac DSF Fac Low Machines Accessed 10 | . 4 1 . . 2 . 3 . Terminals 8 | . 3 1 . . 1 . 3 . Fabricators . | . . . . . . . . . Repair Stations 1 | . . . . . 1 . . . Recycling Units 1 | . 1 . . . . . . . Scanalyzers . | . . . . . . . . . Garrison Access . | . . . . . . . . . Total Hacks 23 | . 10 3 . . 3 . 7 . Successful 9 | . 5 . . . 3 . 1 . Failed 14 | . 5 3 . . . . 6 . Catastrophic 1 | . . 1 . . . . . . Database Lockouts . | . . . . . . . . . Manual 15 | . 5 3 . . . . 7 . Terminals 19 | . 8 3 . . 1 . 7 . Fabricators . | . . . . . . . . . Repair Stations 2 | . . . . . 2 . . . Recycling Units 2 | . 2 . . . . . . . Scanalyzers . | . . . . . . . . . Garrison Access . | . . . . . . . . . Terminal Hacks 4 | . 3 . . . 1 . . . Open DSF 1 | . . . . . 1 . . . Terminal Index 1 | . 1 . . . . . . . Alert Level 1 | . 1 . . . . . . . Zone Layout 1 | . 1 . . . . . . . Fabricator Hacks . | . . . . . . . . . Repair Station Hacks 2 | . . . . . 2 . . . Scan Component 1 | . . . . . 1 . . . Repair 1 | . . . . . 1 . . . Recycling Unit Hacks . | . . . . . . . . . Scanalyzer . | . . . . . . . . . Garrison Access Hacks . | . . . . . . . . . Unauthorized Hacks 3 | . 2 . . . . . 1 . Terminals 2 | . 1 . . . . . 1 . Botnet 1 | . . . . . . . 1 . Operators 1 | . 1 . . . . . . . Fabricators . | . . . . . . . . . Repair Stations . | . . . . . . . . . Recycling Units 1 | . 1 . . . . . . . Monitor 1 | . 1 . . . . . . . Scanalyzers . | . . . . . . . . . Garrison Access . | . . . . . . . . . Data Cores Recovered . | . . . . . . . . . Used . | . . . . . . . . . Hacking Detections 9 | . 4 1 . . 1 . 3 . Full Trace Events 1 | . . 1 . . . . . . Feedback Events . | . . . . . . . . . Feedback Blocked . | . . . . . . . . . Robot Schematics Acquired . | . . . . . . . . . Robots Built . | . . . . . . . . . Authchips . | . . . . . . . . . Time . | . . . . . . . . . Total Robot Build Rating . | . . . . . . . . . Part Schematics Acquired . | . . . . . . . . . Parts Built . | . . . . . . . . . Authchips . | . . . . . . . . . Time . | . . . . . . . . . Total Part Build Rating . | . . . . . . . . . Parts Repaired 1 | . . . . . 1 . . . Time 26 | . . . . . 26 . . . Parts Recycled . | . . . . . . . . . Recycled Matter . | . . . . . . . . . Retrieved Matter . | . . . . . . . . . Retrieved Components . | . . . . . . . . . Parts Scanalyzed . | . . . . . . . . . Part Schematics Acquired . | . . . . . . . . . Parts Damaged . | . . . . . . . . . Bothacking | -11 -10 -9 -9 -8 -7 -7 -6 -6 ------------ Run | Jun Mat Mat Min Mat Fac DSF Fac Low Used RIF Installer . | . . . . . . . . . Robots Hacked . | . . . . . . . . . Non-combat . | . . . . . . . . . Combat . | . . . . . . . . . Robot Hacks Applied . | . . . . . . . . . Relay Couplers Released . | . . . . . . . . . Fabnet Peak Effective % . | . . . . . . . . . Robots Rewired . | . . . . . . . . . Allies Hacked . | . . . . . . . . . Hacks Repelled . | . . . . . . . . . Allies | -11 -10 -9 -9 -8 -7 -7 -6 -6 -------- Run | Jun Mat Mat Min Mat Fac DSF Fac Low Total Allies . | . . . . . . . . . Largest Group . | . . . . . . . . . Highest-Rated Group . | . . . . . . . . . Highest-Rated Ally . | . . . . . . . . . Total Orders . | . . . . . . . . . Ally Attacks . | . . . . . . . . . Total Damage . | . . . . . . . . . Kills . | . . . . . . . . . Allies Corrupted . | . . . . . . . . . Allies Melted . | . . . . . . . . . Intel | -11 -10 -9 -9 -8 -7 -7 -6 -6 ------- Run | Jun Mat Mat Min Mat Fac DSF Fac Low Robot Analysis Total . | . . . . . . . . . Derelict Logs Recovered 2 | . . . 1 . . . . 1 Drone Launches . | . . . . . . . . . Drone Recoveries . | . . . . . . . . . Exploration | -11 -10 -9 -9 -8 -7 -7 -6 -6 ------------- Run | Jun Mat Mat Min Mat Fac DSF Fac Low Turns Passed 2768 | 81 757 746 304 78 87 27 59 629 Spaces Moved 2037 | 73 286 323 156 154 181 56 179 629 Core 87 | 4 1 . . . . . . 82 Treads 179 | . . . . . . . . 179 Legs . | . . . . . . . . . Wheels 476 | 69 285 122 . . . . . . Hover . | . . . . . . . . . Flight 1295 | . . 201 156 154 181 56 179 368 Fastest Speed 31 | 50 80 34 34 31 31 31 31 31 Average Speed 56 | 78 80 57 34 31 31 31 31 71 Slowest Speed 285 | 80 150 285 34 31 31 31 31 160 Overloaded Moves . | . . . . . . . . . Propulsion Burnouts . | . . . . . . . . . Robots Hopped 5 | . . 1 . 1 . 2 . 1 Cave-ins Triggered . | . . . . . . . . . Exploration Rate (%) 28 | 4 26 19 46 17 5 89 7 43 Regions Visited 8 Branch Regions 2 Pre-discovered Areas . | . . . . . . . . . Known Exits Taken 5 | . . 1 1 1 1 . 1 . Unknown Exits Taken 2 | 1 1 . . . . . . . Scrap Searched 2 | . . . . . . . . 2 Spaces Dug 3 | . . 1 2 . . . . . Terrain Destroyed 4 | . . 1 2 . . . . 1 Melee . | . . . . . . . . . Projectile 4 | . . 1 2 . . . . 1 AOE . | . . . . . . . . . Terrain Rammed . | . . . . . . . . . Walls Destroyed . | . . . . . . . . . Machines Disabled . | . . . . . . . . . Actions | -11 -10 -9 -9 -8 -7 -7 -6 -6 --------- Run | Jun Mat Mat Min Mat Fac DSF Fac Low Total 3500 | 85 768 839 399 178 210 60 182 779 Wait 1279 | . 444 468 241 1 26 . . 99 Move 2019 | 72 285 320 155 151 180 51 178 627 Hop 5 | . . 1 . 1 . 2 . 1 Pick Up 22 | 2 6 6 . 2 2 . 2 2 Fast Attach 24 | 7 5 3 . 1 1 . . 7 Attach 15 | . 1 2 . 4 1 1 . 6 Detach 6 | . . 1 . 3 . 1 . 1 Swap 17 | . 3 8 1 3 . 1 . 1 Drop 17 | . 1 7 . 3 . . 2 4 Fire 93 | 4 23 23 2 9 . 1 . 31 Melee 3 | . . . . . . 3 . . Ram . | . . . . . . . . . Kick . | . . . . . . . . . Crush . | . . . . . . . . . Escape Stasis . | . . . . . . . . . Rewire . | . . . . . . . . . Trap . | . . . . . . . . . Miscellaneous . | . . . . . . . . . Route ------- -11/Junkyard -10/Materials -9/Materials -9/Mines -8/Materials -7/Factory -7/DSF -6/Factory -6/Lower Caves History --------- Turn | Location | Event 14 | -11/Junkyard | Discovered new exit (range 16) 82 | -11/Junkyard | Entered Materials 313 | -10/Materials | Build established: Mutant 788 | -10/Materials | Discovered new exit (range 9) 839 | -10/Materials | Entered another Materials area 839 | -9/Materials | Evolved 2 slots: Propulsion x1, Utility x1 1146 | -9/Materials | Build established: Scavenger-Mutant 1576 | -9/Materials | Discovered new exit (range 6) 1584 | -9/Materials | Identified exit to Mines 1585 | -9/Materials | Entered Mines 1603 | -9/Mines | Identified exit to Materials 1889 | -9/Mines | Entered Materials 1889 | -8/Materials | Evolved 2 slots: Propulsion x1, Utility x1 1960 | -8/Materials | Discovered new exit (range 16) 1967 | -8/Materials | Identified exit to Factory 1967 | -8/Materials | Entered Factory 1967 | -7/Factory | Evolved 2 slots: Power x1, Utility x1 2026 | -7/Factory | Repaired Flight Unit 2053 | -7/Factory | Identified exit to DSF 2054 | -7/Factory | Entered DSF 2076 | -7/DSF | Discovered new exit (range 14) 2080 | -7/DSF | Identified exit to Factory 2081 | -7/DSF | Entered Factory 2081 | -6/Factory | Evolved 2 slots: Propulsion x1, Utility x1 2131 | -6/Factory | Discovered new exit (range 6) 2139 | -6/Factory | Identified exit to Lower Caves 2140 | -6/Factory | Entered Lower Caves 2141 | -6/Lower Caves | Acquired the password to a Derelict Tinkerer's latest research 2185 | -6/Lower Caves | Learned 12 Factory zone layouts 2640 | -6/Lower Caves | Caught by Unaware searching for contraband prototypes 2640 | -6/Lower Caves | Caught by Unaware searching for contraband prototypes 2678 | -6/Lower Caves | Core integrity fell below 50% 2687 | -6/Lower Caves | Core integrity fell below 20% 2712 | -6/Lower Caves | Lost 13 parts (2p4n5u2w) 2769 | -6/Lower Caves | Destroyed by H-66 Slayer with Gauss Rifle Last Messages --------------- 02682_ Dropped Com. Battery. 02683_ Lrg. Battery fries itself beyond repair. 02683_ Slug penetrates P-70 Sage. 02683_ Penetrated by Slug. 02684_ Slug penetrates Wall. 02685_ Wall collapses. 02685_ Mic. Fission Core fries itself beyond repair. 02685_ Slug penetrates Wall. 02686_ Imp. Cooling System fries itself beyond repair. 02686_ Penetrated by Slug. 02705_ System corrupted: Matter fused (-5). 02713_ Slug penetrates H-66 Slayer. 02725_ Acquired Flight Unit. 02726_ BVEOHHCG4|AI4IKFOKVUMKNWJ%PVWHNID6/MSP&QZQN QIFQ 02763_ 0YDY:JXYO 02766_ Slug penetrates Wall. 02766_ Penetrated by Slug. 02766_ Slug penetrates Abandoned Machinery. 02766_ Flight Unit destroyed. Map ----- +----------------------------------------------------+ | ??## ? ???"" """" # #?# """ #?# | | ?## ?? ??? # #?# """ " " ### | | ## ?# """" """" # ### "" " # | | ? # """" """" !! "" ### # | | ??# # """" """" #### #### # | | ??# """" """" #### #######?####### # | | ?## """" """" "#####?#?# ##?#???# ## | | ## """" """" ## ###???# #?????# ## | | # !] # #??## ####### # | | #?## ## % | | #### # | | ?? ## ## #####! ## ### | | ????## #???#%! ## #?## # | | ? ??# ### ###??#= #??# # | | ????# #######?########??# ### #### # | | ?#?# #??#?######"""""#??# #?# ## # | | ???## ??##### ##"" ""#?##! x #### # | | ?#??## ???# #"" ""### % h #?### | | ??#??##????# ##" "# ### #???## | | ??????????## ##### ##" "# h##?## ##????## ! | | ????????### #??## #"" " #???# #??????# | | ?#???????# ##?# #???# #??????## | | ?????????# #?# #???# #???????### | | ???????#?## ### % ##### #?????????? | | ??????????# ###### #???? | | ??????????## @ ## #???? | | ?????? ??#?## ### ##### #???? | | ????????????## ##### ##?# #????# ##??? | | ???????????#?# ##???# ###??## #????? ?##???## | | ?????????????###????####?????#####?????###???????? | | ?????????????????????????????????????????????????? | | ?????????????????????????????????????????????????? | | ?????????????????????????????????????????????????? | | ?????????????????????????????????????????????????? | | ?????????????????????????????????????????????????? | | ?????????????????????????????????????????????????? | | ?????????????????????????????????????????????????? | | ?????????????????????????????????????????????????? | | ?????????????????????????????????????????????????? | | ?????????????????????????????????????????????????? | | ?????????????????????????????????????????????????? | | ?????????????????????????????????????????????????? | | ?????????????????????????????????????????????????? | | ?????????????????????????????????????????????????? | | ?????????????????????????????????????????????????? | | | | | | | | | | | +----------------------------------------------------+ Best States ------------- Heat Dissipation 56 Energy Generation 28 Energy Capacity 495 Matter Stores 293 Matter Capacity 300 Sight Range 22 Robot Scan Range 14 Terrain Scan Range 16 Terrain Scan Density 10 ECM Strength 2 Armor Coverage 150 Core Shielding 20 Evasion (%) 63 Recoil Reduction 2 Item Schematics ----------------- None Robot Schematics ------------------ None Fabricated ------------ Nothing Alien Tech Used ----------------- None Achievements -------------- None Challenges ------------ None Game ------ Seed AssaultAlphaFilter Manual? 0 Play Time 00:43:10 Cumulative 154.1 hours Start 2023.06.09 @ 16:46:28 End 2023.06.09 @ 19:00:23 Sessions 1 Manual Loads 0 Difficulty Rogue Special Mode None Game No. 236 Rogue 236 Adventurer 0 Explorer 0 Win Type - Total 0 Types 0/0/0/0/0/0/0/0/0 Lore% 50 Gallery% 57 Achievement% 39 Wizard Run 0 Options --------- ASCII 0 Keyboard 0 Movement Mouse Keybinds 0 Fullscreen 1 Font 12/Smallcaps Map View 83x54 Tactical HUD 1 Map Filters NONE Filters NONE Steam 1 RUN: c328c699-2c99-4341-8a4c-69b83794a40c